bitfinex/quotes_BTCUSD_20250508
["timestamp","ask_amount","ask_price","bid_price","bid_amount"]
[1746671378779,0.0004504,98645.0,98644.0,0.88427684]
[1746671379215,0.0004504,98645.0,98644.0,1.5955434]
[1746671379433,0.0004504,98645.0,98644.0,1.5965434]
[1746671380494,0.0004504,98645.0,98644.0,1.5955434]
[1746671380701,0.0004504,98645.0,98644.0,1.5965434]
[1746671381179,0.0004504,98645.0,98644.0,1.5955434]
[1746671381537,0.0004504,98645.0,98644.0,1.61317712]
[1746671381742,0.0004504,98645.0,98644.0,1.61817712]
[1746671381993,0.0004504,98645.0,98644.0,1.62017712]
[1746671382223,0.0004504,98645.0,98644.0,1.61317712]
[1746671382599,0.0004504,98645.0,98644.0,1.61817712]
[1746671382966,0.02049086,98673.0,98672.0,0.20269174]
[1746671383192,0.02049086,98673.0,98672.0,0.33538586]
[1746671384368,0.02249086,98673.0,98672.0,0.33538586]
[1746671384518,0.02449086,98673.0,98672.0,0.33538586]
[1746671384728,0.02049086,98673.0,98672.0,0.33538586]
[1746671384926,0.02049086,98673.0,98672.0,0.38232888]
[1746671385130,0.02449086,98673.0,98672.0,0.38232888]
[1746671385333,0.02249086,98673.0,98672.0,0.38232888]
[1746671385541,0.02049086,98673.0,98672.0,0.38232888]
[1746671385746,0.02049086,98673.0,98672.0,0.88232888]
[1746671385747,0.02149086,98673.0,98672.0,0.88232888]
[1746671386321,0.02149086,98673.0,98672.0,0.9009626]
[1746671386734,0.02149086,98673.0,98672.0,0.85401958]
[1746671386946,0.02149086,98673.0,98672.0,0.83538586]
[1746671387300,0.02149086,98673.0,98672.0,0.85397484]
[1746671387498,0.02149086,98673.0,98672.0,0.87274487]
[1746671387921,0.02149086,98673.0,98672.0,1.29104487]
[1746671389051,0.02249086,98673.0,98672.0,1.29104487]
[1746671389267,0.02249086,98673.0,98672.0,1.63104487]
[1746671390363,0.02049086,98673.0,98672.0,1.29104487]
[1746671390585,0.02249086,98673.0,98672.0,1.29104487]
[1746671390805,0.02149086,98673.0,98672.0,1.29104487]
[1746671391007,0.02049086,98673.0,98672.0,1.29204487]
[1746671391211,0.02049086,98673.0,98672.0,1.33798789]
[1746671391409,0.02049086,98673.0,98672.0,1.33898789]
[1746671391552,0.02049086,98673.0,98672.0,1.33998789]
[1746671391747,0.02049086,98673.0,98672.0,1.33798789]
[1746671392192,0.02049086,98673.0,98672.0,1.34098789]
[1746671395245,0.02049086,98673.0,98672.0,1.32558789]
[1746671395463,0.02049086,98673.0,98672.0,0.90728789]
[1746671395668,0.02049086,98673.0,98672.0,0.87301786]
[1746671395896,0.02049086,98673.0,98672.0,0.82607484]
[1746671397374,0.02049086,98673.0,98672.0,0.80748586]
[1746671397790,0.02049086,98673.0,98672.0,0.83708586]
[1746671397992,0.02049086,98673.0,98672.0,0.83608586]
[1746671398178,0.02249086,98673.0,98672.0,0.83608586]
[1746671398612,0.02149086,98673.0,98672.0,0.85467972]
[1746671398788,0.02049086,98673.0,98672.0,0.85467972]
[1746671400013,0.02149086,98673.0,98672.0,0.85467972]
[1746671400371,0.02149086,98673.0,98672.0,0.51859386]
[1746671400566,0.05139086,98673.0,98672.0,0.5]
[1746671400737,0.05239086,98673.0,98672.0,0.5]
[1746671400942,0.02249086,98673.0,98672.0,0.5]
[1746671401128,0.02149086,98673.0,98672.0,0.21889174]
[1746671401332,0.02149086,98673.0,98672.0,0.32068586]
[1746671401778,0.02049086,98673.0,98672.0,0.35527972]
[1746671402095,0.02149086,98673.0,98672.0,0.69527972]
[1746671402315,0.02549086,98673.0,98672.0,0.70982057]
[1746671402523,0.00204085,98689.0,98672.0,1.20982057]
[1746671402643,0.00204085,98689.0,98683.0,0.75631828]
[1746671403088,0.00204085,98689.0,98683.0,0.77491214]
[1746671403304,0.81839742,98684.0,98683.0,0.88491214]
[1746671403472,0.002,98709.0,98699.0,0.62287714]
[1746671403668,0.000999,98716.0,98715.0,0.54260345]
[1746671403869,0.0197,98728.0,98726.0,0.01454085]
[1746671404103,0.0197,98728.0,98727.0,0.67953277]
[1746671404304,0.00945539,98747.0,98746.0,0.56708069]
[1746671404536,0.00945539,98747.0,98746.0,0.66887481]
[1746671404750,0.00945539,98747.0,98746.0,0.69306867]
[1746671404966,1e-08,98749.0,98748.0,0.01]
[1746671405171,0.00168397,98768.0,98748.0,0.01]
[1746671405172,0.00168397,98768.0,98767.0,0.55703763]
[1746671405389,0.00168397,98768.0,98767.0,0.6442909]
[1746671405593,0.00168397,98768.0,98767.0,0.65883175]
[1746671406036,0.00168397,98768.0,98767.0,0.6442909]
[1746671406221,0.00213493,98768.0,98767.0,0.65883175]
[1746671406665,0.00213493,98768.0,98767.0,0.6442909]
[1746671406868,0.00213493,98768.0,98767.0,0.65883175]
[1746671407067,0.00213493,98768.0,98767.0,1.15883175]
[1746671407199,0.00213493,98768.0,98767.0,1.16883175]
[1746671407411,0.00213493,98768.0,98767.0,1.17983175]
[1746671407613,0.0257736,98772.0,98771.0,0.56702943]
[1746671407866,0.02691643,98800.0,98799.0,0.54192509]
[1746671408088,0.02691643,98800.0,98799.0,0.64371921]
[1746671408850,0.02691643,98800.0,98799.0,0.30371921]
[1746671409061,0.02691643,98800.0,98799.0,0.10179412]
[1746671409284,0.01841307,98844.0,98799.0,0.10179412]
[1746671409285,0.0154,98837.0,98804.0,0.01012104]
[1746671409489,0.0154,98837.0,98806.0,0.10179412]
[1746671409899,0.0154,98837.0,98806.0,0.10381753]
[1746671410305,0.0154,98837.0,98806.0,0.11835838]
[1746671410532,0.0154,98837.0,98806.0,0.45835838]
[1746671410739,0.0154,98837.0,98806.0,0.45633497]
[1746671410936,0.0154,98837.0,98806.0,0.44179412]
[1746671411359,0.0154,98837.0,98806.0,0.96633497]
[1746671411553,0.0154,98837.0,98806.0,0.97733497]
[1746671411797,0.002,98849.0,98806.0,0.99323497]
[1746671412000,0.002,98849.0,98806.0,1.04323497]
[1746671412155,0.00036329,98807.0,98806.0,1.00423497]
[1746671412357,0.00036329,98807.0,98806.0,0.97833497]
[1746671412775,0.00036329,98807.0,98806.0,0.96733497]
[1746671413029,0.00036329,98807.0,98806.0,0.99323497]
[1746671413242,0.002,98849.0,98808.0,0.46454085]
[1746671413451,0.002,98849.0,98808.0,0.51633497]
[1746671413683,0.0153,98848.0,98847.0,0.20233201]
[1746671413885,0.0153,98848.0,98837.0,0.01011766]
[1746671413886,0.20234891,98840.0,98828.0,0.01011858]
[1746671414093,0.01011695,98844.0,98836.0,0.01011777]
[1746671414294,0.0308,98832.0,98830.0,0.01011838]
[1746671414508,0.0319,98836.0,98832.0,0.01011818]
[1746671414635,0.01011797,98834.0,98828.0,0.10179412]
[1746671414834,0.0319,98836.0,98828.0,0.1119127]
[1746671414835,0.01011787,98835.0,98828.0,0.1119127]
[1746671415050,0.0319,98833.0,98830.0,4.479e-05]
[1746671415330,0.21248022,98833.0,98830.0,4.479e-05]
[1746671415536,0.23426565,98831.0,98830.0,4.479e-05]
[1746671415774,0.01011971,98817.0,98810.0,0.01012043]
[1746671415951,0.01011981,98816.0,98812.0,0.01012022]
[1746671416160,0.20238559,98822.0,98812.0,0.01012022]
[1746671416161,0.20233281,98848.0,98837.0,0.01011766]
[1746671416366,0.01011674,98846.0,98838.0,0.01011756]
[1746671416583,0.01011766,98837.0,98832.0,0.01011818]
[1746671416800,0.01011664,98847.0,98839.0,0.01011746]
[1746671417007,0.002,98849.0,98839.0,0.01011746]
[1746671417008,0.002,98849.0,98846.0,0.21245008]
[1746671417220,0.002,98849.0,98848.0,0.20233085]
[1746671417457,0.002,98849.0,98846.0,0.01011674]
[1746671417658,0.002,98849.0,98847.0,0.30412701]
[1746671417875,0.002,98849.0,98847.0,0.30615023]
[1746671419482,0.002,98849.0,98848.0,0.60179412]
[1746671420100,0.002,98849.0,98848.0,0.94179412]
[1746671420722,0.002,98849.0,98848.0,0.94479412]
[1746671420926,0.002,98849.0,98848.0,0.95789412]
[1746671421137,0.002,98849.0,98848.0,0.94179412]
[1746671421358,0.002,98849.0,98848.0,0.60879412]
[1746671421793,0.002,98849.0,98848.0,0.61279412]
[1746671422035,0.2194288,98849.0,98848.0,0.511]
[1746671422243,0.2352288,98849.0,98848.0,0.511]
[1746671422692,0.2352288,98849.0,98848.0,0.5]
[1746671423133,0.2352288,98849.0,98848.0,0.011]
[1746671423346,0.21251229,98818.0,98809.0,0.01012053]
[1746671423556,0.0263192,98822.0,98815.0,0.01011992]
[1746671423768,0.01012002,98814.0,98810.0,0.10179412]
[1746671423975,0.02521992,98815.0,98811.0,0.01012033]
[1746671424187,0.0307,98813.0,98808.0,0.01012063]
[1746671424415,0.21254138,98805.0,98797.0,0.01012176]
[1746671424620,0.202423,98803.0,98796.0,0.21255796]
[1746671424827,0.202423,98803.0,98788.0,0.20245265]
[1746671424828,0.0307,98803.0,98786.0,0.01012289]
[1746671425061,0.0307,98803.0,98769.0,0.01012463]
[1746671425291,0.0307,98803.0,98779.0,0.0101236]
[1746671425547,0.0307,98803.0,98796.0,0.20243667]
[1746671425759,0.0307,98803.0,98800.0,0.01012145]
[1746671425960,0.0307,98803.0,98802.0,0.00104482]
[1746671426603,0.001,98813.0,98802.0,0.00104482]
[1746671426604,0.001,98813.0,98809.0,0.20240766]
[1746671426814,0.0101193,98821.0,98817.0,0.01011971]
[1746671427029,0.0164,98820.0,98817.0,0.01011971]
[1746671427230,0.0265194,98820.0,98816.0,0.20239549]
[1746671427434,0.0164,98820.0,98816.0,0.2125153]
[1746671427633,0.0164,98820.0,98817.0,0.01011971]
[1746671427840,0.0164,98820.0,98811.0,0.01012033]
[1746671427841,0.01012053,98809.0,98805.0,0.21253931]
[1746671428054,0.20238553,98822.0,98805.0,0.21253931]
[1746671428055,0.02542012,98813.0,98809.0,0.01012053]
[1746671428268,0.0304,98813.0,98810.0,0.21252909]
[1746671428465,0.01012043,98810.0,98803.0,0.01012115]
[1746671428687,0.01012043,98810.0,98802.0,4.482e-05]
[1746671428688,0.18307198,98804.0,98802.0,4.482e-05]
[1746671428903,0.01012094,98805.0,98802.0,4.482e-05]
[1746671429139,0.20240165,98814.0,98805.0,0.2024189]
[1746671429343,0.01011961,98818.0,98813.0,0.01012012]
[1746671429566,0.003,98820.0,98814.0,0.20240046]
[1746671429769,0.01011971,98817.0,98814.0,0.20240046]
[1746671430173,0.01011961,98818.0,98813.0,0.01012012]
[1746671430391,0.20237718,98826.0,98802.0,4.482e-05]
[1746671430392,0.01012043,98810.0,98802.0,4.482e-05]
[1746671430665,0.01012012,98813.0,98808.0,0.01012063]
[1746671430875,0.01012053,98809.0,98804.0,0.20242095]
[1746671431089,0.01012053,98809.0,98802.0,0.01016607]
[1746671431090,0.01012053,98809.0,98806.0,0.5]
[1746671431294,0.20241276,98808.0,98806.0,0.5]
[1746671431699,0.01012053,98809.0,98806.0,0.5]
[1746671432330,0.20239542,98817.0,98809.0,0.01012053]
[1746671432331,0.01011992,98815.0,98809.0,0.01012053]
[1746671432547,0.01011951,98819.0,98814.0,0.01012002]
[1746671432772,0.20238408,98822.0,98812.0,0.01012022]
[1746671432773,0.01011981,98816.0,98812.0,0.01012022]
[1746671432983,0.01011981,98816.0,98812.0,0.21252298]
[1746671433205,0.01011981,98816.0,98810.0,0.20240796]
[1746671433206,0.01011992,98815.0,98811.0,0.01012033]
[1746671433749,0.00940854,98814.0,98811.0,0.01012033]
[1746671434558,0.00940854,98813.0,98811.0,0.01012033]
[1746671435187,0.00940854,98813.0,98812.0,0.20240456]
[1746671435875,0.01240854,98813.0,98812.0,0.20240456]
[1746671436457,0.01040854,98813.0,98812.0,0.20240456]
[1746671436877,0.01240854,98813.0,98812.0,0.20240456]
[1746671437066,0.01340854,98813.0,98812.0,0.20240456]
[1746671439141,0.01340854,98813.0,98812.0,0.30622262]
[1746671439336,0.00940854,98813.0,98812.0,0.30419868]
[1746671439518,0.01240854,98813.0,98812.0,0.64419868]
[1746671439724,0.01340854,98813.0,98812.0,0.64419868]
[1746671439930,0.01340854,98813.0,98812.0,1.16272854]
[1746671439931,0.01240854,98813.0,98812.0,1.16272854]
[1746671440141,0.00940854,98813.0,98812.0,1.16272854]
[1746671440345,0.00940854,98813.0,98812.0,1.16372854]
[1746671440561,0.00940854,98813.0,98812.0,1.16272854]
[1746671440809,0.00940854,98813.0,98812.0,1.16372854]
[1746671441009,0.00940854,98813.0,98812.0,1.28272854]
[1746671441211,0.00940854,98813.0,98812.0,0.83993442]
[1746671441416,0.00892936,98813.0,98812.0,0.83993442]
[1746671441616,0.02502936,98813.0,98812.0,0.619]
[1746671441822,0.04082936,98813.0,98812.0,0.619]
[1746671442512,0.04082936,98813.0,98812.0,0.12]
[1746671442663,0.02318187,98813.0,98812.0,0.12]
[1746671442877,0.12497599,98813.0,98812.0,0.119]
[1746671443414,0.12897599,98813.0,98812.0,0.119]
[1746671443617,0.12497599,98813.0,98812.0,0.119]
[1746671443766,0.12997599,98813.0,98812.0,0.119]
[1746671443983,0.13397599,98813.0,98812.0,0.119]
[1746671444163,0.12997599,98813.0,98812.0,0.119]
[1746671444587,0.005,98813.0,98812.0,0.119]
[1746671445286,0.01,98813.0,98812.0,0.119]
[1746671445493,0.005,98813.0,98812.0,0.119]
[1746671445705,0.005,98813.0,98812.0,0.63752545]
[1746671445909,0.006,98813.0,98812.0,0.63752545]
[1746671446313,0.005,98813.0,98812.0,0.63752545]
[1746671446522,0.0314,98814.0,98812.0,0.63752545]
[1746671446750,0.0314,98813.0,98812.0,0.63752545]
[1746671446933,0.0324,98813.0,98812.0,0.63752545]
[1746671447162,0.13419412,98813.0,98812.0,0.13752545]
[1746671447365,0.09749507,98813.0,98812.0,0.13752545]
[1746671447798,0.09349507,98813.0,98812.0,0.13752545]
[1746671448009,0.09349507,98813.0,98812.0,0.119]
[1746671448430,0.01012094,98805.0,98802.0,4.482e-05]
[1746671448680,0.10179412,98804.0,98802.0,4.482e-05]
[1746671449114,0.30421638,98804.0,98802.0,4.482e-05]
[1746671449324,0.30421638,98804.0,98803.0,0.01855386]
[1746671449924,0.30921638,98804.0,98802.0,4.482e-05]
[1746671450268,0.11079412,98804.0,98802.0,4.482e-05]
[1746671450470,0.202423,98803.0,98802.0,4.482e-05]
[1746671450848,0.20161307,98803.0,98802.0,4.482e-05]
[1746671451261,0.30340719,98803.0,98802.0,4.482e-05]
[1746671451469,0.33450719,98803.0,98802.0,4.482e-05]
[1746671451694,0.34904804,98803.0,98802.0,4.482e-05]
[1746671451910,0.20248038,98775.0,98774.0,0.06112199]
[1746671452099,0.20248038,98775.0,98774.0,0.0611669]
[1746671453562,0.3202745,98775.0,98774.0,0.0611669]
[1746671453771,0.3262745,98775.0,98774.0,0.0611669]
[1746671453971,0.3414745,98775.0,98774.0,0.0611669]
[1746671454195,0.3414745,98775.0,98774.0,4.491e-05]
[1746671454996,0.006,98775.0,98774.0,4.491e-05]
[1746671455234,0.10779412,98775.0,98774.0,4.491e-05]
[1746671455701,0.10179412,98775.0,98774.0,4.491e-05]
[1746671456081,0.10379412,98775.0,98774.0,4.491e-05]
[1746671456789,0.002,98775.0,98774.0,4.491e-05]
[1746671458068,0.001,98775.0,98774.0,0.01574491]
[1746671458422,0.002,98775.0,98774.0,0.03164491]
[1746671458863,0.01012196,98795.0,98786.0,0.01012289]
[1746671459058,0.01012217,98793.0,98787.0,0.20245578]
[1746671459313,0.01012217,98793.0,98789.0,0.20245101]
[1746671459836,0.01012207,98794.0,98789.0,0.20245101]
[1746671460042,0.01012227,98792.0,98787.0,0.20245578]
[1746671460245,0.01012258,98789.0,98783.0,0.20246374]
[1746671460463,0.01012278,98787.0,98783.0,0.20246374]
[1746671460659,0.01012268,98788.0,98783.0,0.20246374]
[1746671460865,0.0101233,98782.0,98779.0,0.04673571]
[1746671461064,0.21257856,98787.0,98780.0,0.20247013]
[1746671461065,0.01012289,98786.0,98780.0,0.20247013]
[1746671461277,0.01012289,98786.0,98782.0,0.20246559]
[1746671461628,0.01012319,98783.0,98779.0,0.04673571]
[1746671461792,0.01012299,98785.0,98779.0,0.24920649]
[1746671461990,0.0101233,98782.0,98779.0,0.04673571]
[1746671462197,0.01012319,98783.0,98779.0,0.24920748]
[1746671462399,0.21258933,98782.0,98779.0,0.04673571]
[1746671463284,0.20248038,98775.0,98774.0,4.491e-05]
[1746671464649,0.002,98782.0,98774.0,4.491e-05]
[1746671464845,0.002,98782.0,98781.0,0.31558224]
[1746671465366,0.01011951,98819.0,98809.0,0.20240892]
[1746671465570,0.01677929,98825.0,98814.0,0.01012002]
[1746671465796,0.01677929,98825.0,98818.0,0.01011961]
[1746671466030,0.01011899,98824.0,98816.0,0.01011981]
[1746671466224,0.01011869,98827.0,98814.0,0.20239978]
[1746671466436,0.01011869,98827.0,98810.0,0.21252704]
[1746671466641,0.01011899,98824.0,98815.0,0.01011992]
[1746671467006,0.01011899,98824.0,98817.0,0.2023941]
[1746671467209,0.0101192,98822.0,98814.0,4.491e-05]
[1746671467412,0.0101192,98822.0,98817.0,0.20239376]
[1746671467617,0.20239637,98816.0,98814.0,4.491e-05]
[1746671468045,0.10179412,98815.0,98814.0,4.491e-05]
[1746671469750,0.10579412,98815.0,98814.0,4.491e-05]
[1746671469948,0.10179412,98815.0,98814.0,4.491e-05]
[1746671470299,0.01012084,98806.0,98800.0,0.20237062]
[1746671470500,0.01012012,98813.0,98808.0,0.20241128]
[1746671470714,0.01511992,98815.0,98808.0,0.20241128]
[1746671470918,0.005,98815.0,98811.0,0.01012033]
[1746671471131,0.005,98815.0,98813.0,0.20240069]
[1746671471341,0.01011869,98827.0,98813.0,0.20240069]
[1746671471342,0.01011889,98825.0,98819.0,0.20238921]
[1746671471566,0.0101192,98822.0,98819.0,0.20238921]
[1746671471740,0.01012033,98811.0,98802.0,0.01012125]
[1746671471953,0.01012033,98811.0,98768.0,0.11883521]
[1746671471954,0.01012135,98801.0,98768.0,0.06883521]
[1746671472221,0.01012135,98801.0,98795.0,0.20243917]
[1746671472777,0.01011961,98818.0,98811.0,0.01012033]
[1746671473114,0.0101194,98820.0,98812.0,0.20240456]
[1746671473115,0.01011951,98819.0,98812.0,0.20240456]
[1746671473330,0.0101191,98823.0,98816.0,0.2023952]
[1746671473543,0.0101192,98822.0,98818.0,0.20239086]
[1746671473731,0.0101192,98822.0,98816.0,0.2023952]
[1746671473946,0.0101191,98823.0,98818.0,0.20239065]
[1746671474150,0.01011869,98827.0,98822.0,0.20238307]
[1746671474558,0.01011858,98828.0,98822.0,0.20238307]
[1746671475185,0.36464,98834.0,98825.0,0.01011889]
[1746671475395,0.36464,98834.0,98826.0,0.20237589]
[1746671475396,0.01011818,98832.0,98826.0,0.20237589]
[1746671475811,0.004,98828.0,98826.0,0.20237589]
[1746671476239,0.01011838,98830.0,98826.0,0.20237589]
[1746671476439,0.01011828,98831.0,98826.0,0.20237589]
[1746671476639,0.003,98832.0,98829.0,0.20236824]
[1746671477071,0.01011828,98831.0,98827.0,0.20237384]
[1746671477275,0.01311818,98832.0,98827.0,0.20237384]
[1746671477478,0.01011858,98828.0,98823.0,0.20238203]
[1746671477894,0.01011848,98829.0,98823.0,0.20244608]
[1746671478080,0.004,98828.0,98825.0,0.20237748]
[1746671478245,0.01411858,98828.0,98823.0,6.405e-05]
[1746671478451,0.002,98828.0,98825.0,0.21249683]
[1746671478652,0.36464,98834.0,98833.0,0.20236155]
[1746671478854,0.36464,98834.0,98831.0,0.20236437]
[1746671478855,0.001,98850.0,98842.0,0.20234313]
[1746671479441,0.001,98850.0,98842.0,0.21804313]
[1746671480227,0.001,98850.0,98842.0,0.23354313]
[1746671481607,0.001,98850.0,98842.0,0.23554313]
[1746671482045,0.001,98850.0,98842.0,0.23754313]
[1746671482272,0.01111633,98850.0,98842.0,0.23754313]
[1746671482478,0.001,98850.0,98842.0,0.67933725]
[1746671482901,0.001,98850.0,98842.0,0.69616516]
[1746671483104,0.001,98850.0,98849.0,0.34]
[1746671483314,0.001,98850.0,98849.0,0.10179412]
[1746671483516,0.001,98850.0,98849.0,0.10381721]
[1746671483695,0.001,98850.0,98849.0,0.44381721]
[1746671483944,0.001,98850.0,98849.0,0.44179412]
[1746671484145,0.001,98850.0,98849.0,0.47439412]
[1746671484358,0.001,98850.0,98849.0,0.47430043]
[1746671484577,0.001,98850.0,98849.0,0.44179412]
[1746671484954,0.002,98850.0,98849.0,0.48330043]
[1746671485193,0.002,98850.0,98849.0,0.48530043]
[1746671485368,0.002,98850.0,98849.0,0.5519636]
[1746671485576,0.002,98850.0,98849.0,1.01790043]
[1746671485981,0.003,98850.0,98849.0,1.02890043]
[1746671486444,0.003,98850.0,98849.0,0.65639412]
[1746671486652,0.003,98850.0,98849.0,0.63999412]
[1746671486862,0.003,98850.0,98849.0,0.522]
[1746671487688,0.002,98850.0,98849.0,0.511]
[1746671487913,0.001,98850.0,98849.0,0.502]
[1746671488128,0.001,98850.0,98849.0,0.003]
[1746671488338,0.001,98850.0,98849.0,0.10681727]
[1746671488547,0.001,98850.0,98849.0,0.12271727]
[1746671488754,0.001,98850.0,98849.0,0.10481727]
[1746671488956,0.00090942,98850.0,98849.0,0.10481703]
[1746671489176,0.00090942,98850.0,98849.0,0.13681703]
[1746671489397,0.00090942,98850.0,98849.0,0.13581703]
[1746671489598,0.00090942,98850.0,98849.0,0.63581703]
[1746671489792,0.00090942,98850.0,98849.0,0.63379412]
[1746671489935,0.00090942,98850.0,98849.0,0.62919412]
[1746671490542,0.00090942,98850.0,98849.0,0.62819412]
[1746671490762,0.00090942,98850.0,98849.0,0.63419412]
[1746671491457,0.00090942,98850.0,98849.0,1.05249412]
[1746671491680,0.00090942,98850.0,98849.0,1.05049412]
[1746671491901,0.00090942,98850.0,98849.0,1.05449412]
[1746671493002,0.00090942,98850.0,98849.0,1.39449412]
[1746671493646,0.00500207,98852.0,98850.0,0.54232675]
[1746671493901,0.00500207,98852.0,98851.0,0.47551669]
[1746671494142,0.00500207,98852.0,98851.0,0.47349412]
[1746671494353,8e-05,98863.0,98862.0,0.54230219]
[1746671494559,8e-05,98863.0,98862.0,0.64409631]
[1746671494766,8e-05,98863.0,98862.0,1.75929631]
[1746671495563,8e-05,98863.0,98862.0,1.7916884]
[1746671495761,8e-05,98863.0,98862.0,1.79175245]
[1746671495982,8e-05,98863.0,98862.0,2.25924614]
[1746671496185,0.00108,98863.0,98862.0,2.33781562]
[1746671496526,0.00108,98863.0,98862.0,2.36861562]
[1746671496753,0.00128148,98869.0,98868.0,0.54228992]
[1746671496959,0.00128148,98869.0,98868.0,0.70799035]
[1746671497171,0.00128148,98869.0,98868.0,0.67548404]
[1746671498010,0.00128148,98869.0,98868.0,0.68348404]
[1746671498445,0.00128148,98869.0,98868.0,0.31208404]
[1746671498863,0.00128148,98869.0,98868.0,0.81208404]
[1746671499322,0.00128148,98869.0,98868.0,0.82718404]
[1746671499613,0.00228148,98869.0,98868.0,1.19448404]
[1746671500393,0.00128148,98869.0,98868.0,1.59378404]
[1746671500773,0.00228148,98869.0,98868.0,1.60378404]
[1746671501169,0.00228148,98869.0,98868.0,1.59348404]
[1746671501386,0.00228148,98869.0,98868.0,1.24748404]
[1746671501819,0.00228148,98869.0,98868.0,1.23728709]
[1746671502019,0.00128148,98869.0,98868.0,1.22728709]
[1746671502224,0.00128148,98869.0,98868.0,1.22228709]
[1746671502451,0.00128148,98869.0,98868.0,1.22828709]
[1746671502797,0.00128148,98869.0,98868.0,1.22228709]
[1746671503187,0.00128148,98869.0,98868.0,0.503]
[1746671503515,0.01069847,98869.0,98868.0,0.503]
[1746671503697,0.01069847,98869.0,98868.0,0.006]
[1746671504098,0.01069847,98869.0,98868.0,0.13431696]
[1746671504305,0.01169847,98869.0,98868.0,0.13431696]
[1746671504525,0.01169847,98869.0,98868.0,0.47431696]
[1746671504728,0.01069847,98869.0,98868.0,0.47229412]
[1746671505024,0.00228148,98869.0,98868.0,0.47229412]
[1746671505430,0.00428148,98869.0,98868.0,0.60179412]
[1746671505635,0.00428148,98869.0,98868.0,0.60479412]
[1746671505837,0.00228148,98869.0,98868.0,0.60479412]
[1746671506266,0.00228148,98869.0,98868.0,0.60679412]
[1746671506434,0.00228148,98869.0,98868.0,1.02509412]
[1746671506876,0.00128148,98869.0,98868.0,1.02009412]
[1746671507240,0.00128148,98869.0,98868.0,1.02409412]
[1746671507462,0.00128148,98869.0,98868.0,1.02209412]
[1746671508724,0.00128148,98869.0,98868.0,1.02009412]
[1746671509159,0.00128148,98869.0,98868.0,0.9203]
[1746671509590,0.00128148,98869.0,98868.0,0.9183]
[1746671509809,0.00128148,98869.0,98868.0,0.9203]
[1746671510271,0.01072868,98869.0,98868.0,1.02109412]
[1746671510507,0.01072868,98869.0,98868.0,1.02009412]
[1746671510715,0.01072868,98869.0,98868.0,1.02109412]
[1746671510889,0.01072868,98869.0,98868.0,1.02209412]
[1746671511061,0.01072868,98869.0,98868.0,1.02109412]
[1746671511465,0.01072868,98869.0,98868.0,1.02209412]
[1746671511672,0.00128148,98869.0,98868.0,1.02109412]
[1746671512055,0.01768148,98869.0,98868.0,0.9193]
[1746671512426,0.01768148,98869.0,98868.0,0.502]
[1746671512933,0.01768148,98869.0,98868.0,0.501]
[1746671513136,0.01968148,98869.0,98868.0,0.5]
[1746671513338,0.02913962,98869.0,98868.0,0.5]
[1746671513535,0.01073962,98869.0,98868.0,0.001]
[1746671513682,0.01073962,98869.0,98867.0,0.20229053]
[1746671513912,0.20229606,98865.0,98863.0,0.04673571]
[1746671514157,0.13359412,98864.0,98863.0,0.04673571]
[1746671514559,0.01273962,98869.0,98867.0,0.20229196]
[1746671514733,0.00328148,98869.0,98867.0,0.20229196]
[1746671514909,0.00528148,98869.0,98867.0,0.20229196]
[1746671515112,0.00328148,98869.0,98867.0,0.20229196]
[1746671515308,0.00428148,98869.0,98867.0,0.20229196]
[1746671515918,0.00328148,98869.0,98867.0,0.20229196]
[1746671516119,0.00428148,98869.0,98867.0,0.20229196]
[1746671516410,0.00228148,98869.0,98867.0,0.20229196]
[1746671516571,0.00945362,98868.0,98867.0,0.20229196]
[1746671517574,0.00945362,98868.0,98867.0,0.70229196]
[1746671517775,0.04175362,98868.0,98867.0,0.5]
[1746671517972,0.14454774,98868.0,98867.0,0.5]
[1746671519170,0.20230015,98863.0,98861.0,0.04673571]
[1746671519370,0.33579427,98863.0,98861.0,0.04673571]
[1746671519803,0.34524789,98863.0,98861.0,0.04673571]
[1746671521164,0.34824789,98863.0,98861.0,0.04673571]
[1746671521352,0.34824789,98863.0,98856.0,0.01011572]
[1746671521353,0.02875362,98863.0,98856.0,0.01011572]
[1746671521589,0.01245362,98863.0,98858.0,0.20231]
[1746671521737,0.01245362,98863.0,98857.0,0.2023121]
[1746671521936,0.02765362,98863.0,98857.0,0.2023121]
[1746671522141,0.01445362,98863.0,98857.0,0.2023121]
[1746671522501,0.01445362,98863.0,98857.0,0.19747637]
[1746671522502,0.01011531,98860.0,98857.0,0.19747637]
[1746671522734,0.21242245,98860.0,98857.0,0.00013434]
[1746671522870,0.23261038,98858.0,98857.0,0.00013434]
[1746671523072,0.0152,98858.0,98857.0,0.00013434]
[1746671523273,0.004,98863.0,98861.0,0.20230424]
[1746671523498,0.00128148,98869.0,98868.0,0.20228992]
[1746671524861,0.00128148,98869.0,98868.0,0.20431276]
[1746671525062,0.00128148,98869.0,98868.0,0.20228992]
[1746671525278,0.00128148,98869.0,98867.0,0.01852514]
[1746671525742,0.00128148,98869.0,98866.0,0.21240751]
[1746671525959,0.00128148,98869.0,98868.0,0.51111449]
[1746671525960,0.002,98869.0,98868.0,0.51111449]
[1746671526178,0.01011378,98875.0,98869.0,0.20228787]
[1746671526652,0.01011398,98873.0,98868.0,0.5]
[1746671526872,0.02531418,98871.0,98868.0,0.5]
[1746671527102,0.0152,98869.0,98868.0,0.5]
[1746671527355,0.13209412,98869.0,98868.0,0.5]
[1746671527584,0.20228992,98868.0,98867.0,0.001]
[1746671527826,0.33638404,98868.0,98867.0,0.001]
[1746671528062,0.21811038,98858.0,98851.0,0.01011623]
[1746671528286,0.01011531,98860.0,98852.0,0.01011613]
[1746671528287,0.20230833,98859.0,98852.0,0.01011613]
[1746671528512,0.20230833,98859.0,98849.0,0.21334391]
[1746671528697,0.015,98858.0,98849.0,0.0009]
[1746671528900,0.015,98858.0,98856.0,0.04670922]
[1746671529156,0.0307,98858.0,98856.0,0.04670922]
[1746671529407,0.01011521,98861.0,98856.0,0.04670922]
[1746671529633,0.010115,98863.0,98856.0,0.04670922]
[1746671529870,0.003,98871.0,98869.0,0.20228595]
[1746671530086,0.01011418,98871.0,98867.0,0.01011459]
[1746671530736,0.01011296,98883.0,98878.0,0.01011347]
[1746671530950,0.01011285,98884.0,98880.0,0.01011326]
[1746671531178,0.01011296,98883.0,98879.0,0.21238078]
[1746671531381,0.01011285,98884.0,98880.0,0.01011326]
[1746671531580,0.01011326,98880.0,98876.0,0.01011367]
[1746671532499,0.01011306,98882.0,98878.0,0.01011347]
[1746671532709,0.01011316,98881.0,98876.0,0.01011367]
[1746671532915,0.01011316,98881.0,98877.0,0.01011357]
[1746671533124,0.01011326,98880.0,98876.0,0.01011367]
[1746671533656,0.01011378,98875.0,98871.0,0.01011418]
[1746671533892,0.0162,98879.0,98875.0,0.01011378]